bitfinex-derivatives/quotes_BTCF0:USTF0_20250823
["timestamp","ask_amount","ask_price","bid_price","bid_amount"]
[1755978389861,3.98688346,115180.0,115170.0,1.39583076]
[1755978399173,3.98688346,115180.0,115170.0,1.33331]
[1755978400362,3.64453614,115180.0,115170.0,1.33331]
[1755978400566,3.19304346,115180.0,115170.0,1.33331]
[1755978400771,3.98524346,115180.0,115170.0,1.33331]
[1755978400969,3.98524346,115180.0,115170.0,1.67565732]
[1755978401269,3.98520346,115180.0,115170.0,1.67565732]
[1755978401470,3.98520346,115180.0,115170.0,1.75374555]
[1755978402378,3.64285614,115180.0,115170.0,1.75374555]
[1755978402774,3.19304346,115180.0,115170.0,1.75374555]
[1755978403079,3.98628346,115180.0,115170.0,1.84059775]
[1755978403467,2.76234,115180.0,115170.0,2.54374507]
[1755978403670,2.76234,115180.0,115170.0,2.79374507]
[1755978403870,2.76234,115180.0,115170.0,2.89593833]
[1755978404071,0.25,115190.0,115180.0,0.0868446]
[1755978404379,0.25,115190.0,115180.0,1.31798593]
[1755978404380,1.04312,115190.0,115180.0,1.31798593]
[1755978404579,1.04312,115190.0,115180.0,1.56798593]
[1755978405275,1.04312,115190.0,115180.0,1.57647576]
[1755978405474,1.04312,115190.0,115180.0,1.56798593]
[1755978406278,1.04712,115190.0,115180.0,1.45961192]
[1755978406688,0.25,115190.0,115180.0,1.45861192]
[1755978406881,1.04396,115190.0,115180.0,1.46061192]
[1755978407282,1.15062,115190.0,115180.0,1.53862245]
[1755978409782,1.16461,115190.0,115180.0,1.53862245]
[1755978409984,1.19809,115190.0,115180.0,1.53862245]
[1755978412987,1.19809,115190.0,115180.0,1.19627513]
[1755978413187,1.19809,115190.0,115180.0,1.53862245]
[1755978415089,1.19809,115190.0,115180.0,1.46061192]
[1755978415688,1.19809,115190.0,115180.0,1.09981192]
[1755978415881,1.19809,115190.0,115180.0,1.46061192]
[1755978418889,1.19809,115190.0,115180.0,1.21061192]
[1755978422193,1.19809,115190.0,115180.0,1.45662693]
[1755978422397,1.24571,115190.0,115180.0,1.45662693]
[1755978422596,0.45407,115190.0,115180.0,1.45662693]
[1755978422795,1.24571,115190.0,115180.0,1.45662693]
[1755978424994,1.24551,115190.0,115180.0,1.53463746]
[1755978425295,0.31632,115190.0,115180.0,1.53463746]
[1755978425591,0.31632,115190.0,115180.0,1.80662693]
[1755978425787,1.10772,115190.0,115180.0,1.80662693]
[1755978425996,1.10772,115190.0,115180.0,1.91600094]
[1755978426391,1.10772,115190.0,115180.0,2.41600094]
[1755978430796,1.10772,115190.0,115180.0,2.30662693]
[1755978432293,0.99971303,115190.0,115180.0,2.30662693]
[1755978435900,0.99971303,115190.0,115180.0,2.41597536]
[1755978439103,0.99971303,115190.0,115180.0,2.30662693]
[1755978440991,1.04789303,115190.0,115180.0,2.30662693]
[1755978442709,1.04789303,115190.0,115180.0,2.41596941]
[1755978443598,1.04789303,115190.0,115180.0,2.77676941]
[1755978443800,0.95217697,115190.0,115180.0,2.66742693]
[1755978450003,0.95217697,115190.0,115180.0,2.41742693]
[1755978453912,0.83488068,115190.0,115180.0,2.41742693]
[1755978454112,0.83488068,115190.0,115180.0,2.57314371]
[1755978454316,0.83488068,115190.0,115180.0,2.23079639]
[1755978454609,0.87449068,115190.0,115180.0,2.47406371]
[1755978455916,0.98115068,115190.0,115180.0,2.47406371]
[1755978458020,0.98115068,115190.0,115180.0,2.31834693]
[1755978460124,0.95765068,115190.0,115180.0,2.31834693]
[1755978460515,0.95765068,115190.0,115180.0,2.47406371]
[1755978461221,0.95765068,115190.0,115180.0,2.31834693]
[1755978463824,0.84035344,115190.0,115180.0,1.97599961]
[1755978464025,0.84035344,115190.0,115180.0,2.31834693]
[1755978473720,0.86318344,115190.0,115180.0,2.31834693]
[1755978473924,0.74588672,115190.0,115180.0,2.31834693]
[1755978475031,0.72238672,115190.0,115180.0,2.31834693]
[1755978479937,0.72238672,115190.0,115180.0,1.97599961]
[1755978480132,0.72238672,115190.0,115180.0,2.31834693]
[1755978480334,0.74686672,115190.0,115180.0,2.31834693]
[1755978481741,0.7554801,115190.0,115180.0,2.31834693]
[1755978482547,0.74686672,115190.0,115180.0,2.31834693]
[1755978482936,0.7555512,115190.0,115180.0,2.31834693]
[1755978483335,0.74686672,115190.0,115180.0,2.31834693]
[1755978484443,0.72309672,115190.0,115180.0,2.31834693]
[1755978484643,0.72309672,115190.0,115180.0,2.47406371]
[1755978485440,0.74686672,115190.0,115180.0,2.47406371]
[1755978486244,0.74686672,115190.0,115180.0,2.42780953]
[1755978488246,0.75571255,115190.0,115180.0,2.42780953]
[1755978489451,0.73194255,115190.0,115180.0,2.42780953]
[1755978492651,0.73194255,115190.0,115180.0,1.70620953]
[1755978492957,0.73194255,115190.0,115180.0,2.42780953]
[1755978493953,0.73194255,115190.0,115180.0,2.08546221]
[1755978494153,0.73194255,115190.0,115180.0,2.42780953]
[1755978495054,0.72309672,115190.0,115180.0,2.42780953]
[1755978495348,0.72309672,115190.0,115180.0,2.08546221]
[1755978495547,0.72309672,115190.0,115180.0,2.42780953]
[1755978496051,0.72309672,115190.0,115180.0,2.31834693]
[1755978497147,0.72309672,115190.0,115180.0,1.59674693]
[1755978497356,0.72309672,115190.0,115180.0,2.31834693]
[1755978498254,0.73180294,115190.0,115180.0,2.47406371]
[1755978499955,0.72309672,115190.0,115180.0,2.47406371]
[1755978502257,0.72309672,115190.0,115180.0,2.31834693]
[1755978503859,0.72309672,115190.0,115180.0,2.47406371]
[1755978504465,0.9923,115190.0,115180.0,2.47406371]
[1755978504661,0.94408,115190.0,115180.0,2.47406371]
[1755978505562,0.99215,115190.0,115180.0,2.31834693]
[1755978507259,0.99215,115190.0,115180.0,2.47406371]
[1755978507971,0.99215,115190.0,115180.0,2.32525767]
[1755978513270,0.20171,115190.0,115180.0,2.32525767]
[1755978513463,0.99215,115190.0,115180.0,2.32525767]
[1755978515370,0.99215,115190.0,115180.0,2.40345535]
[1755978517674,0.99303801,115190.0,115180.0,2.40345535]
[1755978518460,0.99303801,115190.0,115180.0,2.32525767]
[1755978536887,0.99303801,115190.0,115180.0,1.98291035]
[1755978537077,0.99303801,115190.0,115180.0,2.32525767]
[1755978540092,0.99303801,115190.0,115180.0,2.48097445]
[1755978543097,0.99303801,115190.0,115180.0,2.25243494]
[1755978548204,0.11683801,115190.0,115180.0,2.25243494]
[1755978548396,0.89782801,115190.0,115180.0,2.25243494]
[1755978550606,0.90706801,115190.0,115180.0,2.25243494]
[1755978550998,0.89778801,115190.0,115180.0,2.25243494]
[1755978557909,0.89774801,115190.0,115180.0,2.25243494]
[1755978558606,0.89774801,115190.0,115180.0,2.09671816]
[1755978558807,0.78045059,115190.0,115180.0,2.09671816]
[1755978559010,0.19856838,115200.0,115190.0,0.1330973]
[1755978559208,0.98872838,115200.0,115190.0,1.34705217]
[1755978559507,0.19856838,115200.0,115190.0,1.34705217]
[1755978559707,0.98872838,115200.0,115190.0,1.34705217]
[1755978560316,0.98872838,115200.0,115190.0,1.34805217]
[1755978560504,0.99072838,115200.0,115190.0,1.34805217]
[1755978561518,0.20056838,115200.0,115190.0,1.34805217]
[1755978561708,0.99072838,115200.0,115190.0,1.34805217]
[1755978562016,1.09738838,115200.0,115190.0,1.34805217]
[1755978564012,1.12169838,115200.0,115190.0,1.34805217]
[1755978564317,0.33153838,115200.0,115190.0,1.34805217]
[1755978564517,1.12165838,115200.0,115190.0,1.34805217]
[1755978566320,1.09734838,115200.0,115190.0,1.34805217]
[1755978567618,0.22220838,115200.0,115190.0,1.94039949]
[1755978567824,0.21296838,115200.0,115190.0,2.04039949]
[1755978568123,0.21296838,115200.0,115190.0,2.14039949]
[1755978568124,0.15296838,115200.0,115190.0,2.14039949]
[1755978568320,0.05801396,115210.0,115200.0,0.0868297]
[1755978568514,0.05801396,115210.0,115200.0,2.48226741]
[1755978568828,0.8061864,115220.0,115210.0,0.1117822]
[1755978569029,0.8403064,115220.0,115210.0,1.16215952]
[1755978569317,0.8705564,115220.0,115210.0,1.16215952]
[1755978569722,0.8705564,115220.0,115210.0,1.17084746]
[1755978570123,0.8745564,115220.0,115210.0,1.17184746]
[1755978570323,0.8755564,115220.0,115210.0,1.17184746]
[1755978570519,0.8755564,115220.0,115210.0,1.27229788]
[1755978570722,0.8735564,115220.0,115210.0,1.27129788]
[1755978571022,0.8725564,115220.0,115210.0,1.27229788]
[1755978571518,0.9792164,115220.0,115210.0,1.27229788]
[1755978580124,0.22882,115220.0,115210.0,1.27229788]
[1755978580324,1.01866,115220.0,115210.0,1.27229788]
[1755978583230,0.22882,115220.0,115210.0,1.27229788]
[1755978583530,1.01862,115220.0,115210.0,1.27229788]
[1755978583724,0.22882,115220.0,115210.0,1.27229788]
[1755978583927,1.01862,115220.0,115210.0,1.27229788]
[1755978588934,0.22882,115220.0,115210.0,1.27229788]
[1755978589235,1.01858,115220.0,115210.0,1.27229788]
[1755978594838,1.0185,115220.0,115210.0,1.27229788]
[1755978595232,1.0185,115220.0,115210.0,1.16315952]
[1755978596936,0.90123575,115220.0,115210.0,1.19676952]
[1755978597134,0.93365575,115220.0,115210.0,1.19676952]
[1755978599031,1.00529575,115220.0,115210.0,1.19676952]
[1755978600337,1.00529575,115220.0,115210.0,0.8768022]
[1755978600637,1.00529575,115220.0,115210.0,1.21914952]
[1755978604031,1.00517575,115220.0,115210.0,1.21914952]
[1755978605141,1.00517575,115220.0,115210.0,0.8768022]
[1755978605436,1.00517575,115220.0,115210.0,1.21914952]
[1755978605738,1.00517575,115220.0,115210.0,0.8768022]
[1755978605938,1.00517575,115220.0,115210.0,1.21914952]
[1755978607250,1.00517575,115220.0,115210.0,0.8768022]
[1755978607541,1.00517575,115220.0,115210.0,1.21914952]
[1755978609252,1.00517575,115220.0,115210.0,1.3748663]
[1755978620752,1.00517575,115220.0,115210.0,1.03251898]
[1755978621146,1.00517575,115220.0,115210.0,1.3748663]
[1755978621645,0.88791095,115220.0,115210.0,1.3748663]
[1755978621845,0.90352095,115220.0,115210.0,1.3748663]
[1755978622050,0.90352095,115220.0,115210.0,1.21914952]
[1755978622551,0.90352095,115220.0,115210.0,1.32854003]
[1755978623747,1.01018095,115220.0,115210.0,1.32854003]
[1755978630552,1.01018095,115220.0,115210.0,1.21914952]
[1755978630947,1.01018095,115220.0,115210.0,1.3748663]
[1755978632556,1.01018095,115220.0,115210.0,1.7356663]
[1755978634456,0.22062095,115220.0,115210.0,1.7356663]
[1755978634756,1.00994095,115220.0,115210.0,1.7356663]
[1755978642163,1.00994095,115220.0,115210.0,1.57994952]
[1755978646259,1.00994095,115220.0,115210.0,1.6893389]
[1755978650972,1.00994095,115220.0,115210.0,1.34699158]
[1755978651272,1.00994095,115220.0,115210.0,1.6893389]
[1755978653472,0.91443459,115220.0,115210.0,1.57994952]
[1755978654778,0.91443459,115220.0,115210.0,1.21914952]
[1755978655477,0.94093459,115220.0,115210.0,1.21914952]
[1755978656779,0.94093459,115220.0,115210.0,1.32852793]
[1755978660783,0.94093459,115220.0,115210.0,1.21914952]
[1755978678288,0.94093459,115220.0,115210.0,0.8768022]
[1755978678490,1.63918203,115220.0,115210.0,0.43727641]
[1755978678692,1.63918203,115220.0,115210.0,0.70149732]
[1755978680101,1.63918203,115220.0,115210.0,0.72322732]
[1755978680394,1.63918203,115220.0,115210.0,0.73728732]
[1755978681389,1.63918203,115220.0,115210.0,0.85024838]
[1755978682093,1.63918203,115220.0,115210.0,0.50790106]
[1755978682295,1.63918203,115220.0,115210.0,0.85024838]
[1755978683596,1.29683471,115220.0,115210.0,0.93707048]
[1755978683791,1.63918203,115220.0,115210.0,0.93707048]
[1755978684997,1.29683471,115220.0,115210.0,0.93707048]
[1755978685202,1.63918203,115220.0,115210.0,0.93707048]
[1755978686698,1.29683471,115220.0,115210.0,0.93707048]
[1755978686998,1.63918203,115220.0,115210.0,0.93707048]
[1755978687197,1.29683471,115220.0,115210.0,0.93707048]
[1755978687698,1.29683471,115220.0,115210.0,0.85024838]
[1755978689305,0.50751471,115220.0,115210.0,0.93707048]
[1755978689601,1.20986011,115220.0,115210.0,0.93707048]
[1755978689901,0.95986011,115220.0,115210.0,0.93707048]
[1755978690105,1.04667471,115220.0,115210.0,0.93707048]
[1755978693306,1.04667471,115220.0,115210.0,0.85896942]
[1755978693801,1.04667471,115220.0,115210.0,0.9683464]
[1755978695706,1.04667471,115220.0,115210.0,0.62599908]
[1755978695910,1.04667471,115220.0,115210.0,0.9683464]
[1755978697706,0.95986011,115220.0,115210.0,0.9683464]
[1755978698596,0.95986011,115220.0,115210.0,0.93704161]
[1755978702313,0.17070011,115220.0,115210.0,0.93704161]
[1755978702503,0.95974011,115220.0,115210.0,0.93704161]
[1755978704316,1.04655471,115220.0,115210.0,0.93704161]
[1755978706915,1.04655471,115220.0,115210.0,0.85896942]
[1755978708615,1.04655471,115220.0,115210.0,0.93704161]
[1755978714316,0.25751471,115220.0,115210.0,0.93704161]
[1755978714517,1.04655471,115220.0,115210.0,0.93704161]
[1755978716910,1.04655471,115220.0,115210.0,0.85896942]
[1755978717611,1.04655471,115220.0,115210.0,0.9683464]
[1755978720515,1.04655471,115220.0,115210.0,0.85896942]
[1755978720816,1.04655471,115220.0,115210.0,0.77214732]
[1755978721015,1.38890203,115220.0,115210.0,0.77214732]
[1755978721421,1.38890203,115220.0,115210.0,0.85896942]
[1755978722622,1.04655471,115220.0,115210.0,0.85896942]
[1755978722919,1.38890203,115220.0,115210.0,0.85896942]
[1755978727821,1.38890203,115220.0,115210.0,1.21976942]
[1755978728623,1.38890203,115220.0,115210.0,0.85896942]
[1755978728919,1.38890203,115220.0,115210.0,1.21976942]
[1755978729326,1.38890203,115220.0,115210.0,1.3291464]
[1755978734530,1.04655471,115220.0,115210.0,1.3291464]
[1755978734731,1.38890203,115220.0,115210.0,1.3291464]
[1755978736128,1.38890203,115220.0,115210.0,0.9683464]
[1755978736331,1.38890203,115220.0,115210.0,1.3291464]
[1755978741634,1.38890203,115220.0,115210.0,0.98679908]
[1755978741934,1.38890203,115220.0,115210.0,1.3291464]
[1755978744533,1.38890203,115220.0,115210.0,0.86511698]
[1755978744727,1.38890203,115220.0,115200.0,0.0525]
[1755978744728,0.1612521,115210.0,115200.0,0.0525]
[1755978745030,0.53009942,115210.0,115200.0,0.75640732]
[1755978745234,0.63345401,115210.0,115200.0,0.75640732]
[1755978746031,0.63345401,115210.0,115200.0,0.76040732]
[1755978746232,0.63345401,115210.0,115200.0,0.84723692]
[1755978746935,0.63345401,115210.0,115200.0,0.87020692]
[1755978750936,0.63345401,115210.0,115200.0,0.78337732]
[1755978751738,0.63345401,115210.0,115200.0,0.87020702]
[1755978752829,0.63345401,115210.0,115200.0,0.44103]
[1755978753030,0.63345401,115210.0,115200.0,0.78337732]
[1755978754740,0.29110669,115210.0,115200.0,0.78337732]
[1755978755044,0.63345401,115210.0,115200.0,0.78337732]
[1755978762355,0.63345401,115210.0,115200.0,0.87020702]
[1755978763956,0.61380401,115210.0,115200.0,0.87020702]
[1755978764555,0.61380401,115210.0,115200.0,0.78337732]
[1755978766048,0.27145669,115210.0,115200.0,0.78337732]
[1755978766253,0.61380401,115210.0,115200.0,0.78337732]
[1755978766462,0.63345401,115210.0,115200.0,0.78337732]
[1755978772657,0.63345401,115210.0,115200.0,0.8614114]
[1755978773160,0.63345401,115210.0,115200.0,0.78337732]
[1755978773562,0.63345401,115210.0,115200.0,0.8614114]
[1755978773858,0.63345401,115210.0,115200.0,0.51906408]
[1755978774058,0.63345401,115210.0,115200.0,0.8614114]
[1755978780253,0.29110669,115210.0,115200.0,0.8614114]
[1755978780555,0.61380401,115210.0,115200.0,0.8614114]
[1755978780863,0.27145669,115210.0,115200.0,0.8614114]
[1755978781161,0.61380401,115210.0,115200.0,0.9482411]
[1755978783161,0.61380401,115210.0,115200.0,0.60589378]
[1755978783364,0.61380401,115210.0,115200.0,0.9482411]
[1755978790062,0.27145669,115210.0,115200.0,0.9482411]
[1755978790263,0.61380401,115210.0,115200.0,0.9482411]
[1755978791467,0.61380401,115210.0,115200.0,0.87020702]
[1755978795368,0.27145669,115210.0,115200.0,0.87020702]
[1755978795567,0.61380401,115210.0,115200.0,0.78337732]
[1755978797067,0.27145669,115210.0,115200.0,0.78337732]
[1755978797267,0.61380401,115210.0,115200.0,0.78337732]
[1755978798565,0.61380401,115210.0,115200.0,0.8614114]
[1755978798769,0.61380401,115210.0,115200.0,0.9482411]
[1755978800370,1.40240401,115210.0,115200.0,0.9482411]
[1755978802771,1.40240401,115210.0,115200.0,0.8614114]
[1755978802966,1.40240401,115210.0,115200.0,0.78337732]
[1755978803772,1.40240401,115210.0,115200.0,0.87020702]
[1755978806475,1.40240401,115210.0,115200.0,0.5278597]
[1755978806776,1.40240401,115210.0,115200.0,0.87020702]
[1755978812084,1.42205401,115210.0,115200.0,0.87020702]
[1755978812973,1.42205401,115210.0,115200.0,0.9482411]
[1755978814179,1.42205401,115210.0,115200.0,0.60589378]
[1755978814373,1.42205401,115210.0,115200.0,0.9482411]
[1755978817375,1.07970669,115210.0,115200.0,0.9482411]
[1755978817582,1.42205401,115210.0,115200.0,0.9482411]
[1755978818076,1.42205401,115210.0,115200.0,0.8631614]
[1755978818383,1.42205401,115210.0,115200.0,0.78512732]
[1755978822884,1.42205401,115210.0,115200.0,0.8631614]
[1755978823103,1.42205401,115210.0,115200.0,0.52081408]
[1755978823292,1.42205401,115210.0,115200.0,0.8631614]
[1755978829693,1.42205401,115210.0,115200.0,0.78512732]
[1755978830893,0.63345401,115210.0,115200.0,0.78512732]
[1755978831089,1.42177401,115210.0,115200.0,0.78512732]
[1755978834693,0.63345401,115210.0,115200.0,0.78512732]
[1755978834992,1.42173401,115210.0,115200.0,0.78512732]
[1755978835192,0.63345401,115210.0,115200.0,0.78512732]
[1755978835393,1.42169401,115210.0,115200.0,0.78512732]
[1755978838189,1.42169401,115210.0,115200.0,0.8631614]
[1755978839186,1.42169401,115210.0,115200.0,0.52081408]
[1755978839386,1.07934669,115210.0,115200.0,0.8631614]
[1755978839591,1.42169401,115210.0,115200.0,0.8631614]
[1755978840195,1.07934669,115210.0,115200.0,0.8631614]
[1755978840380,1.42169401,115210.0,115200.0,0.8631614]
[1755978842698,1.42169401,115210.0,115200.0,0.48724408]
[1755978842996,1.42169401,115210.0,115200.0,0.44146]
[1755978843390,0.1184097,115200.0,115190.0,0.12637408]
[1755978843592,0.89006702,115200.0,115190.0,0.43818408]
[1755978843797,0.89006702,115200.0,115190.0,0.48677408]
[1755978844096,1.67822702,115200.0,115190.0,0.48677408]
[1755978844695,1.67822702,115200.0,115190.0,0.49177408]
[1755978845399,1.78158161,115200.0,115190.0,0.49177408]
[1755978847299,1.78158161,115200.0,115190.0,0.41374]
[1755978848695,1.78158161,115200.0,115190.0,0.49177408]
[1755978848896,1.78158161,115200.0,115190.0,0.41374]
[1755978849394,1.78158161,115200.0,115190.0,0.49177408]
[1755978851097,1.78158161,115200.0,115190.0,0.41374]
[1755978854602,1.78158161,115200.0,115190.0,0.38149]
[1755978855301,1.78158161,115200.0,115190.0,0.41374]
[1755978855797,1.42078161,115200.0,115190.0,0.41374]
[1755978855993,1.78158161,115200.0,115190.0,0.41374]
[1755978866211,1.78158161,115200.0,115190.0,0.36679]
[1755978866413,1.78158161,115200.0,115190.0,0.35045]
[1755978868311,1.43923429,115200.0,115190.0,0.35045]
[1755978868502,1.78158161,115200.0,115190.0,0.35045]
[1755978868702,0.65107429,115200.0,115190.0,0.38389]
[1755978868902,1.78142161,115200.0,115190.0,0.41445]
[1755978869112,1.78142161,115200.0,115190.0,0.75679732]
[1755978870317,1.78142161,115200.0,115190.0,0.41445]
[1755978873321,1.78142161,115200.0,115190.0,0.49248408]
[1755978875912,1.78138161,115200.0,115190.0,0.49248408]
[1755978878914,1.78138161,115200.0,115190.0,0.41445]
[1755978880117,1.78138161,115200.0,115190.0,0.49248408]
[1755978880317,1.78138161,115200.0,115190.0,0.41445]
[1755978882419,0.65107429,115200.0,115190.0,0.41445]
[1755978882621,1.78134161,115200.0,115190.0,0.41445]
[1755978885622,0.99342161,115200.0,115190.0,0.41445]
[1755978885826,1.78130161,115200.0,115190.0,0.41445]
[1755978888820,1.78130161,115200.0,115190.0,0.49248408]
[1755978889018,1.78130161,115200.0,115190.0,0.8348314]
[1755978889223,1.78130161,115200.0,115190.0,0.49248408]
[1755978891123,1.78130161,115200.0,115190.0,0.8348314]
[1755978892825,1.42050161,115200.0,115190.0,0.8348314]
[1755978893028,1.78130161,115200.0,115190.0,0.8348314]
[1755978896726,1.78130161,115200.0,115190.0,0.49248408]
[1755978900134,1.43895429,115200.0,115190.0,0.49248408]
[1755978900322,1.78130161,115200.0,115190.0,0.49248408]
[1755978901339,1.43895429,115200.0,115190.0,0.49248408]
[1755978901523,1.78130161,115200.0,115190.0,0.49248408]
[1755978907438,1.42050161,115200.0,115190.0,0.49248408]
[1755978907636,1.78130161,115200.0,115190.0,0.49248408]
[1755978916354,1.78130161,115200.0,115190.0,0.8348314]
[1755978916556,1.42050161,115200.0,115190.0,0.8348314]
[1755978916756,1.78130161,115200.0,115190.0,0.8348314]
[1755978917856,1.78130161,115200.0,115190.0,0.49248408]
[1755978922460,1.78130161,115200.0,115190.0,0.41445]
[1755978925563,1.92780956,115200.0,115190.0,0.41445]
[1755978925957,1.92780956,115200.0,115190.0,0.49248408]
[1755978926862,1.56700956,115200.0,115190.0,0.49248408]
[1755978927062,1.92780956,115200.0,115190.0,0.49248408]
[1755978928558,1.92780956,115200.0,115190.0,0.41445]
[1755978934069,1.43895429,115200.0,115190.0,0.41445]
[1755978934370,1.92780956,115200.0,115190.0,0.41445]
[1755978935163,1.13992956,115200.0,115190.0,0.41445]
[1755978935467,1.92736956,115200.0,115190.0,0.41445]
[1755978936264,0.65107429,115200.0,115190.0,0.41445]
[1755978936461,0.10335459,115200.0,115190.0,1.60094247]
[1755978936670,0.10335459,115200.0,115190.0,1.67897655]
[1755978936867,0.89079459,115200.0,115190.0,1.67897655]
[1755978937077,0.89079459,115200.0,115190.0,1.60094247]
[1755978937269,0.89079459,115200.0,115190.0,1.67905862]
[1755978937567,0.89079459,115200.0,115190.0,1.60094247]
[1755978937968,0.89079459,115200.0,115190.0,1.71019863]
[1755978938361,0.89079459,115200.0,115190.0,1.60094247]
[1755978938672,0.97762429,115200.0,115190.0,1.71019863]
[1755978938967,1.00412429,115200.0,115190.0,1.71019863]
[1755978943875,1.00412429,115200.0,115190.0,1.31819139]
[1755978944073,1.01045429,115200.0,115190.0,1.67899139]
[1755978944469,1.01045429,115200.0,115190.0,1.31819139]
[1755978944670,1.01045429,115200.0,115190.0,1.67899139]
[1755978950483,1.01045429,115200.0,115190.0,1.31819139]
[1755978950784,1.01045429,115200.0,115190.0,1.67899139]
[1755978954183,1.01045429,115200.0,115190.0,1.31819139]
[1755978954389,1.01045429,115200.0,115190.0,1.67899139]
[1755978956692,1.01045429,115200.0,115190.0,1.60094247]
[1755978957491,1.01045429,115200.0,115190.0,1.34939863]
[1755978958092,1.01045429,115200.0,115190.0,1.71019863]
[1755978958890,1.01045429,115200.0,115190.0,1.46019863]
[1755978959595,1.01045429,115200.0,115190.0,1.09939863]
[1755978959892,1.01045429,115200.0,115190.0,1.46019863]
[1755978961996,1.01045429,115200.0,115190.0,1.35094247]
[1755978962795,1.01045429,115200.0,115190.0,0.99014247]
[1755978962995,1.01045429,115200.0,115190.0,1.35094247]
[1755978964388,1.01045429,115200.0,115190.0,1.46019863]
[1755978964794,1.01045429,115200.0,115190.0,1.35094247]
[1755978965296,1.01045429,115200.0,115190.0,1.46019863]
[1755978968789,1.01045429,115200.0,115190.0,1.35094247]
[1755978969189,1.01045429,115200.0,115190.0,1.09939863]
[1755978969393,1.01045429,115200.0,115190.0,1.46019863]
[1755978970085,1.01045429,115200.0,115190.0,1.09939863]
[1755978970295,1.01045429,115200.0,115190.0,1.46019863]
[1755978970598,1.01045429,115200.0,115190.0,1.09939863]
[1755978970796,1.01045429,115200.0,115190.0,1.46019863]
[1755978974899,0.96915459,115200.0,115190.0,1.46019863]
[1755978984506,0.96915459,115200.0,115190.0,1.35094247]
[1755978984805,0.96915459,115200.0,115190.0,0.8620872]
[1755978985007,0.96915459,115200.0,115190.0,0.97152492]
[1755978985205,0.96915459,115200.0,115190.0,1.46038019]
[1755978986308,0.18171459,115200.0,115190.0,1.46038019]
[1755978986498,0.96863459,115200.0,115190.0,1.46038019]
[1755978988109,0.96863459,115200.0,115190.0,1.47795554]
[1755978996713,0.96863459,115200.0,115190.0,1.11715554]
[1755978996917,0.96863459,115200.0,115190.0,1.47795554]
[1755979000721,0.96863459,115200.0,115190.0,1.11715554]
[1755979000923,0.96863459,115200.0,115190.0,1.47795554]
[1755979003325,0.96863459,115200.0,115190.0,0.98910027]
[1755979003726,0.96863459,115200.0,115190.0,1.47795554]
[1755979006624,0.18171459,115200.0,115190.0,1.47795554]
[1755979006828,0.96847459,115200.0,115190.0,1.47795554]
[1755979013032,0.96847459,115200.0,115190.0,1.36851782]
[1755979016736,0.96847459,115200.0,115190.0,1.00771782]
[1755979016936,0.96847459,115200.0,115190.0,1.36851782]
[1755979018642,0.96847459,115200.0,115190.0,1.4779549]
[1755979024943,0.18171459,115200.0,115190.0,1.4779549]
[1755979025145,0.96835459,115200.0,115190.0,1.4779549]
[1755979025843,0.96835459,115200.0,115190.0,1.36851782]
[1755979026841,0.96835459,115200.0,115190.0,0.87966255]
[1755979027146,0.96835459,115200.0,115190.0,1.36851782]
[1755979028948,0.96835459,115200.0,115190.0,1.4779549]
[1755979032655,0.96835459,115200.0,115190.0,1.1171549]
[1755979032856,0.96835459,115200.0,115190.0,1.4779549]
[1755979035958,0.18171459,115200.0,115190.0,1.4779549]
[1755979036157,0.15521459,115200.0,115190.0,1.4779549]
[1755979036351,0.92031459,115200.0,115190.0,1.4779549]
[1755979036847,0.94681459,115200.0,115190.0,1.4779549]
[1755979037060,0.95314459,115200.0,115190.0,1.4779549]
[1755979039666,0.96970459,115200.0,115190.0,1.4779549]
[1755979047167,0.96970459,115200.0,115190.0,1.8387549]
[1755979050970,0.96970459,115200.0,115190.0,1.72931782]
[1755979053566,0.18314459,115200.0,115190.0,1.72931782]
[1755979053762,0.96958459,115200.0,115190.0,1.72931782]
[1755979058672,0.96958459,115200.0,115190.0,1.83873933]
[1755979060669,0.96950459,115200.0,115190.0,1.83873933]
[1755979063982,0.18314459,115200.0,115190.0,1.83873933]
[1755979064180,0.96950459,115200.0,115190.0,1.83873933]
[1755979065585,0.96950459,115200.0,115190.0,1.11713933]
[1755979065783,0.96950459,115200.0,115190.0,1.83873933]
[1755979067384,0.18314459,115200.0,115190.0,1.83873933]
[1755979067684,0.96946459,115200.0,115190.0,1.83873933]
[1755979068182,0.96946459,115200.0,115190.0,1.11713933]
[1755979068383,0.96946459,115200.0,115190.0,1.83873933]
[1755979069083,0.96946459,115200.0,115190.0,1.72931782]
[1755979069584,0.96946459,115200.0,115190.0,1.00771782]
[1755979069982,0.96946459,115200.0,115190.0,1.72931782]
[1755979070282,0.96946459,115200.0,115190.0,1.83874805]
[1755979076185,0.96946459,115200.0,115190.0,1.72931782]
[1755979077387,0.96946459,115200.0,115190.0,1.83873992]
[1755979077787,0.96946459,115200.0,115190.0,1.72931782]
[1755979079289,0.96946459,115200.0,115190.0,1.83873849]
[1755979079788,0.85217583,115200.0,115190.0,1.72931782]
[1755979081192,0.85217583,115200.0,115190.0,1.00771782]
[1755979081492,0.85217583,115200.0,115190.0,1.72931782]
[1755979081989,0.95883583,115200.0,115190.0,1.72931782]
[1755979087988,0.95883583,115200.0,115190.0,1.83871888]
[1755979092600,0.95883583,115200.0,115190.0,1.11711888]
[1755979092800,0.95883583,115200.0,115190.0,1.72931782]
[1755979092999,0.95883583,115200.0,115190.0,1.83872296]
[1755979095706,0.95883583,115200.0,115190.0,1.34986769]
[1755979095906,0.17251583,115200.0,115190.0,1.83872296]
[1755979096099,0.95859583,115200.0,115190.0,1.83872296]
[1755979096508,0.95859583,115200.0,115190.0,1.11712296]
[1755979096704,0.95859583,115200.0,115190.0,1.83872296]
[1755979098106,0.95859583,115200.0,115190.0,1.11712296]
[1755979098306,0.95859583,115200.0,115190.0,1.83872296]
[1755979099108,0.95859583,115200.0,115190.0,1.11712296]
[1755979099308,0.95859583,115200.0,115190.0,1.83872296]
[1755979099608,0.95859583,115200.0,115190.0,1.72931782]
[1755979100710,0.95859583,115200.0,115190.0,1.00771782]
[1755979100909,0.95859583,115200.0,115190.0,1.72931782]
[1755979101707,0.17251583,115200.0,115190.0,1.72931782]
[1755979101908,0.95855583,115200.0,115190.0,1.72931782]
[1755979103114,0.95855583,115200.0,115190.0,1.00771782]
[1755979103314,0.95855583,115200.0,115190.0,1.72931782]
[1755979104916,0.95855583,115200.0,115190.0,1.72920119]
[1755979106708,0.95851583,115200.0,115190.0,1.72920119]
[1755979108418,0.95851583,115200.0,115190.0,1.72946686]
[1755979108618,0.95851583,115200.0,115190.0,1.83889382]
[1755979110621,0.95851583,115200.0,115190.0,1.11729382]
[1755979110921,0.95851583,115200.0,115190.0,1.83889382]
[1755979112125,0.95851583,115200.0,115190.0,1.11729382]
[1755979112421,0.95851583,115200.0,115190.0,1.83889382]
[1755979113122,0.95851583,115200.0,115190.0,1.11729382]
[1755979113328,0.95851583,115200.0,115190.0,1.83889382]
[1755979114128,0.95851583,115200.0,115190.0,1.11729382]
[1755979114325,0.95851583,115200.0,115190.0,1.83889382]
[1755979117122,0.95851583,115200.0,115190.0,1.11729382]
[1755979117319,0.95851583,115200.0,115190.0,1.83889382]